fUSD/lending_fUSD_20251210
["ID","MTS","AMOUNT","RATE_DAILY","PERIOD"]
[398134951,1765396240701,-1519.728732,0.0004089,4]
[398134953,1765396240711,-1519.728732,0.00040989,4]
[398134955,1765396240721,-3039.457464,0.0004099,4]
[398134957,1765396240731,-500.0,0.00040999,60]
[398134959,1765396240741,-500.0,0.00040999,60]
[398134961,1765396240750,-500.0,0.00040999,60]
[398134963,1765396240760,-500.0,0.00040999,60]
[398134965,1765396240771,-500.0,0.00040999,60]
[398134967,1765396240790,-500.0,0.00040999,60]
[398134969,1765396240802,-500.0,0.00040999,60]
[398134971,1765396240813,-500.0,0.00040999,30]
[398134974,1765396240825,-17438.81,0.00041,2]
[398134976,1765396240837,-168.0,0.00041,2]
[398134978,1765396240847,-1519.728732,0.00041049,4]
[398134980,1765396240858,-1519.728732,0.00041085,4]
[398134982,1765396240868,-394.06,0.00041085,2]
[398134984,1765396240879,-1000.0,0.00041094,120]
[398134986,1765396240888,-500.0,0.00041095,60]
[398134988,1765396240898,-500.0,0.00041095,60]
[398134990,1765396240907,-500.0,0.00041095,60]
[398134992,1765396240917,-500.0,0.00041095,60]
[398134994,1765396240928,-500.0,0.00041095,60]
[398134996,1765396240938,-500.0,0.00041095,60]
[398134998,1765396240947,-500.0,0.00041095,60]
[398135000,1765396240957,-500.0,0.00041095,60]
[398135002,1765396240967,-408.13603189,0.00041095,60]
[398135004,1765396240977,-500.0,0.00041095,60]
[398135006,1765396240987,-500.0,0.00041095,60]
[398135009,1765396240998,-500.0,0.00041095,60]
[398135011,1765396241009,-500.0,0.00041095,60]
[398135013,1765396241020,-500.0,0.00041095,60]
[398135015,1765396241029,-500.0,0.00041095,60]
[398135017,1765396241039,-500.0,0.00041095,60]
[398135019,1765396241049,-500.0,0.00041095,60]
[398135021,1765396241058,-500.0,0.00041095,60]
[398135023,1765396241068,-522.71572811,0.00041095,60]
[398135025,1765396241077,-500.0,0.00041095,60]
[398135027,1765396241086,-500.0,0.00041095,60]
[398135029,1765396241096,-500.0,0.00041095,60]
[398135031,1765396241105,-500.0,0.00041095,60]
[398135033,1765396241115,-523.88,0.00041095,60]
[398135035,1765396241125,-500.0,0.00041095,60]
[398135037,1765396241136,-500.0,0.00041095,60]
[398135039,1765396241145,-502.48147822,0.00041095,60]
[398135041,1765396241155,-500.0,0.00041095,60]
[398135043,1765396241164,-500.0,0.00041095,60]
[398135045,1765396241173,-503.46816557,0.00041095,60]
[398135047,1765396241183,-500.0,0.00041095,60]
[398135049,1765396241193,-500.0,0.00041095,60]
[398135051,1765396241203,-500.0,0.00041095,60]
[398135053,1765396241213,-500.0,0.00041095,60]
[398135055,1765396241223,-500.0,0.00041095,60]
[398135057,1765396241237,-293.54,0.00041095,60]
[398135059,1765396241247,-500.0,0.00041095,60]
[398135061,1765396241256,-500.0,0.00041095,60]
[398135063,1765396241266,-500.0,0.00041095,60]
[398135065,1765396241277,-500.0,0.00041095,60]
[398135067,1765396241286,-500.0,0.00041095,60]
[398135069,1765396241296,-500.0,0.00041095,60]
[398135071,1765396241308,-500.0,0.00041095,60]
[398135073,1765396241317,-500.0,0.00041095,60]
[398135075,1765396241327,-500.0,0.00041095,60]
[398135077,1765396241336,-500.0,0.00041095,60]
[398135079,1765396241345,-500.0,0.00041095,60]
[398135081,1765396241354,-500.0,0.00041095,60]
[398135083,1765396241363,-500.0,0.00041095,60]
[398135085,1765396241373,-597.8,0.00041095,60]
[398135087,1765396241383,-500.0,0.00041095,60]
[398135089,1765396241392,-500.0,0.00041095,60]
[398135091,1765396241403,-500.0,0.00041095,60]
[398135093,1765396241413,-500.0,0.00041095,60]
[398135095,1765396241422,-503.86820772,0.00041095,60]
[398135097,1765396241432,-500.0,0.00041095,60]
[398135099,1765396241441,-500.0,0.00041095,60]
[398135101,1765396241451,-513.64978613,0.00041095,60]
[398135103,1765396241461,-473.92287295,0.00041095,60]
[398135105,1765396241470,-500.0,0.00041095,60]
[398135107,1765396241481,-500.0,0.00041095,60]
[398135109,1765396241490,-506.48423416,0.00041095,60]
[398135111,1765396241500,-500.0,0.00041095,60]
[398135113,1765396241510,-500.0,0.00041095,60]
[398135115,1765396241520,-500.0,0.00041095,60]
[398135117,1765396241530,-500.0,0.00041095,60]
[398135120,1765396241544,-500.0,0.00041095,60]
[398135122,1765396241554,-500.0,0.00041095,60]
[398135124,1765396241565,-500.0,0.00041095,60]
[398135126,1765396241574,-500.0,0.00041095,60]
[398135128,1765396241584,-500.000001,0.00041095,60]
[398135130,1765396241593,-500.0,0.00041095,14]
[398135132,1765396241603,-508.01,0.00041095,60]
[398135134,1765396241613,-500.0,0.00041095,60]
[398135136,1765396241624,-502.84805343,0.00041095,60]
[398135138,1765396241634,-500.0,0.00041095,60]
[398135140,1765396241643,-500.0,0.00041095,60]
[398135142,1765396241653,-500.0,0.00041095,60]
[398135144,1765396241662,-500.0,0.00041095,60]
[398135146,1765396241672,-500.0,0.00041095,60]
[398135148,1765396241681,-500.0,0.00041095,60]
[398135150,1765396241692,-500.0,0.00041095,60]
[398135152,1765396241702,-504.42901893,0.00041095,60]
[398135154,1765396241712,-500.0,0.00041095,60]
[398135156,1765396241721,-500.0,0.00041095,60]
[398135158,1765396241731,-500.0,0.00041095,60]
[398135160,1765396241741,-500.0,0.00041095,60]
[398135162,1765396241751,-500.0,0.00041095,60]
[398135164,1765396241761,-519.83,0.00041095,60]
[398135166,1765396241770,-551.78,0.00041095,60]
[398135168,1765396241781,-500.0,0.00041095,60]
[398135171,1765396241791,-500.0,0.00041095,60]
[398135173,1765396241802,-500.0,0.00041095,60]
[398135175,1765396241811,-504.11565813,0.00041095,60]
[398135177,1765396241821,-500.0,0.00041095,60]
[398135179,1765396241830,-500.0,0.00041095,60]
[398135181,1765396241840,-500.0,0.00041095,30]
[398135183,1765396241849,-516.46,0.00041095,60]
[398135185,1765396241860,-500.0,0.00041095,60]
[398135187,1765396241868,-500.0,0.00041095,60]
[398135189,1765396241878,-330.88068406,0.00041095,60]
[398135191,1765396241889,-532.36,0.00041095,60]
[398135193,1765396241900,-500.0,0.00041095,60]
[398135195,1765396241910,-500.0,0.00041095,60]
[398135197,1765396241924,-500.0,0.00041095,60]
[398135199,1765396241933,-500.0,0.00041095,60]
[398135201,1765396241944,-500.0,0.00041095,60]
[398135203,1765396241954,-500.0,0.00041095,60]
[398135205,1765396241964,-500.0,0.00041095,60]
[398135207,1765396241974,-500.0,0.00041095,60]
[398135209,1765396241984,-500.0,0.00041095,60]
[398135211,1765396241994,-500.0,0.00041095,60]
[398135213,1765396242003,-500.0,0.00041095,60]
[398135215,1765396242013,-500.0,0.00041095,60]
[398135217,1765396242023,-500.0,0.00041095,60]
[398135219,1765396242033,-500.0,0.00041095,60]
[398135221,1765396242044,-500.0,0.00041095,60]
[398135223,1765396242054,-265.3035788,0.00041095,60]
[398135225,1765396242064,-500.0,0.00041095,60]
[398135227,1765396242073,-551.94,0.00041095,60]
[398135229,1765396242084,-593.27479769,0.00041095,60]
[398135232,1765396242093,-500.0,0.00041095,60]
[398135234,1765396242104,-500.0,0.00041095,60]
[398135236,1765396242116,-500.0,0.00041095,60]
[398135238,1765396242126,-265.04,0.00041095,60]
[398135240,1765396242135,-500.0,0.00041095,60]
[398135242,1765396242145,-500.0,0.00041095,60]
[398135244,1765396242154,-500.0,0.00041095,60]
[398135246,1765396242163,-500.0,0.00041095,60]
[398135248,1765396242173,-189.16,0.00041095,60]
[398135250,1765396242182,-509.73649696,0.00041095,60]
[398135252,1765396242191,-500.0,0.00041095,30]
[398135254,1765396242203,-217.74,0.00041095,30]
[398135256,1765396242212,-500.0,0.00041095,60]
[398135258,1765396242222,-185.72,0.00041095,60]
[398135260,1765396242233,-500.0,0.00041095,60]
[398135262,1765396242244,-500.0,0.00041095,60]
[398135264,1765396242253,-500.0,0.00041095,60]
[398135266,1765396242263,-500.0,0.00041095,60]
[398135268,1765396242272,-500.0,0.00041095,60]
[398135270,1765396242283,-500.0,0.00041095,60]
[398135272,1765396242296,-500.0,0.00041095,60]
[398135274,1765396242305,-500.0,0.00041095,60]
[398135276,1765396242317,-500.0,0.00041095,60]
[398135278,1765396242327,-500.0,0.00041095,60]
[398135280,1765396242337,-515.8,0.00041095,60]
[398135282,1765396242347,-523.93,0.00041095,60]
[398135284,1765396242356,-500.0,0.00041095,60]
[398135286,1765396242365,-500.0,0.00041095,60]
[398135288,1765396242375,-500.0,0.00041095,60]
[398135290,1765396242385,-194.59673171,0.00041095,60]
[398135292,1765396242395,-503.44250167,0.00041095,60]
[398135294,1765396242405,-500.0,0.00041095,60]
[398135296,1765396242415,-500.0,0.00041095,60]
[398135298,1765396242424,-500.0,0.00041095,60]
[398135300,1765396242433,-551.78,0.00041095,60]
[398135302,1765396242442,-745.37,0.00041095,60]
[398135304,1765396242452,-745.37,0.00041095,60]
[398135306,1765396242462,-500.0,0.00041095,14]
[398135308,1765396242471,-500.0,0.00041095,60]
[398135310,1765396242481,-642.38,0.00041095,60]
[398135312,1765396242491,-500.0,0.00041095,60]
[398135314,1765396242501,-500.0,0.00041095,60]
[398135316,1765396242511,-500.0,0.00041095,60]
[398135318,1765396242523,-500.0,0.00041095,60]
[398135320,1765396242533,-500.0,0.00041095,60]
[398135322,1765396242544,-500.0,0.00041095,60]
[398135324,1765396242554,-500.0,0.00041095,60]
[398135326,1765396242563,-500.0,0.00041095,60]
[398135328,1765396242573,-500.0,0.00041095,60]
[398135330,1765396242583,-500.0,0.00041095,60]
[398135332,1765396242592,-500.0,0.00041095,60]
[398135334,1765396242602,-226.22,0.00041095,60]
[398135337,1765396242614,-500.0,0.00041095,60]
[398135338,1765396242624,-530.26,0.00041095,60]
[398135341,1765396242633,-500.0,0.00041095,60]
[398135343,1765396242643,-500.0,0.00041095,60]
[398135345,1765396242652,-500.0,0.00041095,60]
[398135346,1765396242661,-500.0,0.00041095,60]
[398135347,1765396242670,-500.0,0.00041095,60]
[398135348,1765396242680,-500.0,0.00041095,60]
[398135349,1765396242690,-500.0,0.00041095,60]
[398135350,1765396242698,-704.07,0.00041095,30]
[398135351,1765396242708,-325.87,0.00041109,14]
[398135352,1765396242717,-900.0,0.00041279,2]
[398135353,1765396242726,-5000.0,0.00041335,120]
[398135355,1765396242736,-591.54575894,0.000414,30]
[398135357,1765396242745,-151.0,0.0004141,2]
[398135359,1765396242755,-151.0,0.0004141,2]
[398135361,1765396242764,-151.0,0.0004141,2]
[398135363,1765396242774,-151.0,0.0004141,2]
[398135365,1765396242784,-151.0,0.0004141,2]
[398135367,1765396242795,-151.0,0.0004141,2]
[398135369,1765396242804,-151.0,0.0004141,2]
[398135372,1765396242814,-151.0,0.0004141,2]
[398135374,1765396242825,-151.0,0.0004141,2]
[398135376,1765396242834,-151.0,0.0004141,2]
[398135378,1765396242844,-151.0,0.0004141,2]
[398135380,1765396242856,-2458.0,0.00041421,7]
[398135382,1765396242866,-150.85,0.00041425,2]
[398135384,1765396242875,-150.85,0.00041425,2]
[398135386,1765396242885,-900.11048824,0.00041434,120]
[398135388,1765396242895,-590.6,0.00041434,60]
[398135390,1765396242904,-577.87283872,0.00041434,60]
[398135392,1765396242913,-500.0,0.00041434,60]
[398135394,1765396242923,-500.0,0.00041434,60]
[398135396,1765396242933,-500.0,0.00041434,60]
[398135398,1765396242943,-500.0,0.00041434,60]
[398135400,1765396242952,-500.0,0.00041434,60]
[398135402,1765396242963,-500.0,0.00041434,60]
[398135404,1765396242972,-500.0,0.00041434,60]
[398135406,1765396242983,-464.50619349,0.00041434,60]
[398135408,1765396242992,-500.0,0.00041434,60]
[398135411,1765396243002,-500.0,0.00041434,60]
[398135413,1765396243011,-500.0,0.00041434,60]
[398135415,1765396243021,-500.0,0.00041434,60]
[398135419,1765396243032,-500.0,0.00041434,60]
[398135421,1765396243043,-500.0,0.00041434,60]
[398135423,1765396243053,-500.0,0.00041434,60]
[398135425,1765396243063,-500.0,0.00041434,60]
[398135427,1765396243072,-500.0,0.00041434,60]
[398135429,1765396243081,-500.0,0.00041434,60]
[398135431,1765396243091,-500.0,0.00041434,60]
[398135433,1765396243101,-500.0,0.00041434,60]
[398135435,1765396243112,-500.0,0.00041434,60]
[398135437,1765396243121,-500.0,0.00041434,60]
[398135439,1765396243131,-500.0,0.00041434,60]
[398135441,1765396243141,-500.0,0.00041434,2]
[398135443,1765396243152,-500.0,0.00041434,2]
[398135445,1765396243161,-500.0,0.00041434,2]
[398135447,1765396243171,-745.37,0.00041434,60]
[398135449,1765396243180,-745.37,0.00041434,60]
[398135451,1765396243190,-745.37,0.00041434,60]
[398135453,1765396243199,-500.0,0.00041434,30]
[398135455,1765396243209,-500.0,0.00041434,30]
[398135457,1765396243219,-509.22748173,0.00041434,30]
[398135460,1765396243231,-198.53866788,0.00041434,60]
[398135462,1765396243243,-143255.07653652,0.00041435,2]
[398135465,1765396243263,-403.91398327,0.00041435,2]
[398135467,1765396243275,-1265.07791143,0.00041435,2]
[398135478,1765396243370,-593.02810869,0.00041435,2]
[398135481,1765396243386,-15228.148,0.00041435,2]
[398135506,1765396243637,-500.0,0.00020873,2]
[398135508,1765396243646,-500.0,0.00020873,2]
[398135510,1765396243656,-500.0,0.00020873,2]
[398135512,1765396243666,-221.20950671,0.00041435,2]
[398135634,1765396244853,-1.7e-07,0.00041435,2]
[398135636,1765396244866,-865.13590181,0.00041435,2]
[398135639,1765396244885,-500.0,0.00020873,2]
[398135641,1765396244894,-89862.063629,0.00041435,2]
[398135643,1765396244905,-629.4546188,0.00041435,2]
[398135645,1765396244917,-1495.78179057,0.00041435,2]
[398135647,1765396244928,-777.12919889,0.00041435,2]
[398135650,1765396244939,-4024.0199998,0.00041435,2]
[398135652,1765396244950,-2381.98672709,0.00041435,2]
[398135655,1765396244965,-372538.95593096,0.00041435,2]
[398135657,1765396244979,-275.00454862,0.00041435,2]
[398135667,1765396245063,-289.03222255,0.00020873,2]
[398135669,1765396245074,-20529.21275716,0.00041435,2]
[398135672,1765396245084,-259.83510721,0.00041435,2]
[398135674,1765396245095,-14032.98514283,0.00041435,2]
[398135676,1765396245106,-11455.88315591,0.00041435,2]
[398135678,1765396245117,-1269.95189461,0.00041435,2]
[398135680,1765396245127,-872.26117996,0.00041435,2]
[398135682,1765396245138,-378.87943479,0.00041435,2]
[398135685,1765396245150,-33417.76391472,0.00041435,2]
[398135743,1765396246252,-1742.09431691,0.00041435,2]
[398135744,1765396246264,-2196.92682387,0.00041435,2]
[398135745,1765396246277,-12485.39301366,0.00041435,2]
[398135746,1765396246288,-4377.62457762,0.00041435,2]
[398135748,1765396246300,-4562.6521762,0.00041435,2]
[398135750,1765396246311,-1236.613284,0.00041435,2]
[398135753,1765396246323,-5911.61489766,0.00041435,2]
[398135755,1765396246334,-456.93,0.00041435,2]
[398135757,1765396246345,-387.5,0.00041435,2]
[398135759,1765396246356,-3821.09259322,0.00041435,2]
[398135762,1765396246367,-2038.77999999,0.00041435,2]
[398135767,1765396246410,-2236.39820028,0.00041435,2]
[398135772,1765396246517,-912.15864265,0.00041435,2]
[398135856,1765396462324,-500.0,0.00017873,2]
[398135857,1765396462347,-255.27870567,0.00018421,2]
[398135858,1765396467432,-186.40748798,0.00018421,2]
[398135859,1765396470032,-152.37446444,0.00018421,2]
[398135861,1765396563149,250.0,0.000202,30]
[398135863,1765396633256,-179.26090205,0.00017873,2]
[398135864,1765396633292,-250.0,0.00018147,2]
[398135865,1765396633325,-442.67694968,0.00018421,2]
[398135866,1765396633360,-250.0,0.0001966,2]
[398135867,1765396633392,-195.0,0.0001966,2]
[398135868,1765396633423,-250.0,0.00020078,2]
[398135869,1765396633454,-226.62390705,0.00020263,2]
[398135870,1765396633490,-1200.0,0.00021917,2]
[398135871,1765396633528,-500.0,0.00021918,4]
[398135872,1765396633561,-500.0,0.00021918,4]
[398135873,1765396633592,-500.0,0.00021918,4]
[398135874,1765396633619,-505.68411786,0.00021918,4]
[398135875,1765396633649,-500.0,0.00023225,2]
[398135876,1765396633684,-1680.0,0.0002393,2]
[398135877,1765396633714,-1198.49,0.0002404,2]
[398135878,1765396633740,-935.95922191,0.00024988,2]
[398135879,1765396633769,-1729.0,0.00026128,2]
[398135880,1765396633802,-160.0,0.00033,14]
[398135881,1765396633834,-166.66,0.00035826,30]
[398135882,1765396633862,-166.66,0.00036581,30]
[398135883,1765396633894,-166.66,0.00037335,30]
[398135884,1765396633925,-166.66,0.00038089,30]
[398135885,1765396633955,-166.66,0.00038843,30]
[398135886,1765396633983,-188.98,0.00039335,120]
[398135887,1765396634011,-166.66,0.00039598,30]
[398135888,1765396634040,-500.0,0.00040211,60]
[398135889,1765396634070,-500.0,0.00040211,60]
[398135890,1765396634097,-11608.36490145,0.00040337,2]
[398135891,1765396635142,-360.27509855,0.00040337,2]
[398135892,1765396635170,-227.91,0.00040462,2]
[398135893,1765396635433,-9999.99,0.00040995,2]
[398135894,1765396635468,-735.07,0.00040995,2]
[398135895,1765396635499,-1597.45,0.00040995,2]
[398135896,1765396635525,-843.17,0.00040995,2]
[398135897,1765396635551,-150.99,0.00040995,30]
[398135898,1765396635578,-150.99,0.00040995,2]
[398135899,1765396635604,-500.0,0.00040999,60]
[398135900,1765396635630,-999.99,0.00041072,2]
[398135901,1765396635654,-5979.42,0.00041072,2]
[398135902,1765396635678,-1195.58,0.00041072,90]
[398135903,1765396635708,-2259.16490145,0.00041072,2]
[398135904,1765396636044,-7740.82509855,0.00041072,2]
[398135905,1765396636070,-9999.99,0.00041072,2]
[398135906,1765396636095,-499.99,0.00041072,2]
[398135907,1765396636122,-500.0,0.00041095,60]
[398135908,1765396636148,-499.39959983,0.00041095,60]
[398135909,1765396636173,-506.0772378,0.00041095,60]
[398135910,1765396636199,-500.0,0.00041095,60]
[398135911,1765396636225,-500.0,0.00041095,60]
[398135912,1765396636251,-500.0,0.00041095,60]
[398135913,1765396636277,-500.0,0.00041095,60]
[398135914,1765396636303,-500.0,0.00041095,60]
[398135915,1765396636330,-500.0,0.00041095,60]
[398135916,1765396636356,-500.0,0.00041095,60]
[398135917,1765396636387,-500.0,0.00041095,60]
[398135918,1765396636411,-500.0,0.00041095,60]
[398135919,1765396636440,-500.0,0.00041095,60]
[398135920,1765396636467,-253.71806382,0.00041095,60]
[398135921,1765396636699,-246.28193618,0.00041095,60]
[398135922,1765396636725,-500.0,0.00041095,60]
[398135923,1765396636755,-500.0,0.00041095,60]
[398135924,1765396636782,-500.0,0.00041095,60]
[398135925,1765396636807,-500.0,0.00041095,60]
[398135926,1765396636834,-500.0,0.00041095,60]
[398135927,1765396636862,-500.0,0.00041095,60]
[398135928,1765396636887,-500.0,0.00041095,60]
[398135929,1765396636913,-500.0,0.00041095,60]
[398135930,1765396636940,-500.0,0.00041095,60]
[398135931,1765396636967,-500.0,0.00041095,60]
[398135932,1765396636993,-500.0,0.00041095,60]
[398135933,1765396637017,-500.0,0.00041095,60]
[398135934,1765396637041,-291.92940486,0.00041095,60]
[398135935,1765396637066,-500.0,0.00041095,60]
[398135936,1765396637094,-500.0,0.00041095,60]
[398135937,1765396637119,-500.0,0.00041095,60]
[398135938,1765396637145,-500.0,0.00041095,60]
[398135939,1765396637170,-500.0,0.00041095,60]
[398135940,1765396637194,-500.0,0.00041095,60]
[398135941,1765396637220,-552.38937385,0.00041095,60]
[398135942,1765396637244,-500.0,0.00041095,60]
[398135943,1765396637270,-500.0,0.00041095,60]
[398135944,1765396637294,-500.0,0.00041095,60]
[398135945,1765396637318,-500.0,0.00041095,60]
[398135946,1765396637342,-500.0,0.00041095,2]
[398135947,1765396637370,-618.1,0.00041095,60]
[398135948,1765396637394,-503.96649223,0.00041095,60]
[398135949,1765396637422,-500.0,0.00041095,60]
[398135950,1765396637447,-363.33,0.00041095,60]
[398135951,1765396637473,-500.0,0.00041095,60]
[398135952,1765396637497,-500.0,0.00041095,60]
[398135953,1765396637523,-500.0,0.00041095,60]
[398135954,1765396637549,-500.0,0.00041095,60]
[398135955,1765396637575,-500.0,0.00041095,60]
[398135956,1765396637599,-500.0,0.00041095,60]
[398135957,1765396637627,-500.0,0.00041095,60]
[398135958,1765396637654,-500.0,0.00041095,60]
[398135959,1765396637682,-500.0,0.00041095,60]
[398135960,1765396637710,-500.0,0.00041095,60]
[398135961,1765396637739,-500.0,0.00041095,60]
[398135962,1765396637764,-500.0,0.00041095,60]
[398135963,1765396637790,-500.0,0.00041095,60]
[398135964,1765396637816,-500.0,0.00041095,60]
[398135965,1765396637843,-500.0,0.00041095,60]
[398135966,1765396637871,-150.32,0.00041096,2]
[398135967,1765396637896,-2773.68279288,0.00041116,10]
[398135968,1765396638038,-7226.31720712,0.00041116,10]
[398135969,1765396638065,-676.59364029,0.00041333,15]
[398135970,1765396638092,-11262.049681,0.00041345,2]
[398135971,1765396638122,-676.59364023,0.00041355,15]
[398135972,1765396638148,-803.0,0.00041374,120]
[398135973,1765396638174,-676.59364023,0.00041378,15]
[398135974,1765396638200,-676.59364023,0.000414,15]
[398135975,1765396638226,-1654.073,0.00041414,61]
[398135976,1765396638365,-676.59364023,0.00041422,15]
[398135977,1765396638392,-188.70684306,0.00041432,28]
[398135978,1765396638419,-482.88506761,0.00041433,120]
[398135979,1765396638504,-17.11493239,0.00041433,120]
[398135980,1765396638531,-518.5,0.00041433,120]
[398135981,1765396638558,-537.6845,0.00041433,120]
[398135982,1765396638585,-557.5788265,0.00041433,120]
[398135983,1765396638618,-500.0,0.00041433,31]
[398135984,1765396638646,-500.0,0.00041433,31]
[398135985,1765396638674,-500.0,0.00041433,31]
[398135986,1765396638704,-500.0,0.00041433,31]
[398135987,1765396638731,-500.0,0.00041433,31]
[398135988,1765396638759,-500.0,0.00041433,31]
[398135989,1765396638789,-500.0,0.00041433,31]
[398135990,1765396638815,-500.0,0.00041433,31]
[398135991,1765396638846,-500.0,0.00041433,31]
[398135992,1765396638872,-500.0,0.00041433,31]
[398135993,1765396638898,-500.0,0.00041433,31]
[398135994,1765396638923,-500.0,0.00041433,31]
[398135995,1765396638952,-500.0,0.00041433,31]
[398135996,1765396638978,-500.0,0.00041433,31]
[398135997,1765396639005,-500.0,0.00041433,31]
[398135998,1765396639034,-363.00265972,0.00041433,31]
[398135999,1765396639059,-500.0,0.00041433,31]
[398136000,1765396639085,-500.0,0.00041433,31]
[398136001,1765396639110,-500.0,0.00041433,31]
[398136002,1765396639136,-500.0,0.00041433,31]
[398136003,1765396639171,-573.02773629,0.00041433,31]
[398136004,1765396639196,-500.0,0.00041433,31]
[398136005,1765396639222,-500.0,0.00041433,31]
[398136006,1765396639247,-500.0,0.00041433,31]
[398136007,1765396639272,-500.0,0.00041433,31]
[398136008,1765396639298,-500.0,0.00041433,31]
[398136009,1765396639324,-500.0,0.00041433,31]
[398136010,1765396639350,-500.0,0.00041433,31]
[398136011,1765396639381,-500.0,0.00041433,31]
[398136012,1765396639406,-500.0,0.00041433,31]
[398136013,1765396639433,-500.0,0.00041433,31]
[398136014,1765396639460,-500.0,0.00041433,31]
[398136015,1765396639485,-500.0,0.00041433,31]
[398136016,1765396639511,-500.0,0.00041433,31]
[398136017,1765396639536,-500.0,0.00041433,31]
[398136018,1765396639561,-500.0,0.00041433,31]
[398136019,1765396639586,-500.0,0.00041433,31]
[398136020,1765396639610,-300.0,0.00041433,120]
[398136021,1765396639636,-311.1,0.00041433,120]
[398136022,1765396639660,-322.6107,0.00041433,120]
[398136023,1765396639685,-233.21484585,0.00041433,120]
[398136024,1765396639711,-624.47,0.00041434,60]
[398136025,1765396639736,-369.96,0.00041434,60]
[398136026,1765396639760,-500.0,0.00041434,60]
[398136027,1765396639785,-500.0,0.00041434,60]
[398136028,1765396639810,-500.0,0.00041434,60]
[398136029,1765396639834,-500.0,0.00041434,60]
[398136030,1765396639858,-500.0,0.00041434,60]
[398136031,1765396639883,-271.73579925,0.00041434,60]
[398136032,1765396640092,-228.26420075,0.00041434,60]
[398136033,1765396640119,-500.0,0.00041434,60]
[398136034,1765396640143,-632.68614301,0.00041434,60]
[398136035,1765396640169,-279.06326455,0.00041434,60]
[398136036,1765396640196,-500.0,0.00041434,60]
[398136037,1765396640221,-500.0,0.00041434,60]
[398136038,1765396640245,-500.0,0.00041434,60]
[398136039,1765396640271,-500.0,0.00041434,60]
[398136040,1765396640297,-676.59364023,0.00041445,15]
[398136041,1765396640323,-676.59364023,0.00041467,15]
[398136042,1765396640350,-676.59364023,0.00041489,15]
[398136043,1765396640384,-1000.0,0.00041499,120]
[398136044,1765396640410,-1333.86,0.000415,30]
[398136045,1765396640437,-676.59364023,0.00041512,15]
[398136046,1765396640462,-492.32422215,0.00041531,31]
[398136047,1765396640489,-197.94689894,0.00041531,31]
[398136048,1765396640514,-500.0,0.00041531,31]
[398136049,1765396640539,-500.0,0.00041531,31]
[398136050,1765396640563,-500.0,0.00041531,31]
[398136051,1765396640588,-210.4691387,0.00041531,31]
[398136052,1765396640612,-6679.449,0.00041532,2]
[398136053,1765396640638,-281.2338,0.00041532,2]
[398136054,1765396640668,-6958.32877098,0.00041532,2]
[398136055,1765396640733,-25000.0,0.00041532,2]
[398136056,1765396641131,-25000.0,0.00041532,2]
[398136057,1765396641843,-261.84747477,0.00041334,120]
[398136058,1765396641875,-24738.15252523,0.00041532,2]
[398136059,1765396642752,-25000.0,0.00041532,2]
[398136060,1765396643942,-25000.0,0.00041532,2]
[398136061,1765396645291,-25000.0,0.00041532,2]